fUSD/lending_fUSD_20241128
["ID","MTS","AMOUNT","RATE_DAILY","PERIOD"]
[343657880,1732803032734,-500.0,9.998e-05,2]
[343657881,1732803032744,-158.49000953,9.998e-05,2]
[343657882,1732803032753,-263.36,9.998e-05,2]
[343657883,1732803032763,-639.25,9.998e-05,2]
[343657884,1732803032772,-500.0,9.998e-05,2]
[343657885,1732803032781,-500.0,9.998e-05,2]
[343657886,1732803032790,-500.0,9.998e-05,2]
[343657887,1732803032800,-500.0,9.998e-05,2]
[343657888,1732803032809,-530.97,9.998e-05,2]
[343657889,1732803032819,-500.0,9.998e-05,2]
[343657890,1732803032832,-346.28556663,9.998e-05,2]
[343657891,1732803032842,-512.65,9.998e-05,2]
[343657892,1732803032851,-500.0,9.998e-05,2]
[343657893,1732803032860,-1473.33,9.998e-05,2]
[343657894,1732803032870,-670.29170353,9.999e-05,2]
[343657895,1732803032880,-183.72844237,9.999e-05,2]
[343657896,1732803032890,-10000.0,9.999e-05,2]
[343657897,1732803032900,-176.91499999,9.999e-05,2]
[343657898,1732803032909,-500.0,9.999e-05,2]
[343657899,1732803032919,-500.0,9.999e-05,2]
[343657900,1732803032928,-387.06828189,9.999e-05,2]
[343657901,1732803032937,-3137.66,9.999e-05,2]
[343657902,1732803032946,-3137.66,9.999e-05,2]
[343657903,1732803032955,-3137.66,9.999e-05,2]
[343657904,1732803032965,-3137.66,9.999e-05,2]
[343657905,1732803032975,-3137.66,9.999e-05,2]
[343657906,1732803032984,-3137.66,9.999e-05,2]
[343657907,1732803032993,-3137.66,9.999e-05,2]
[343657908,1732803033002,-3137.66,9.999e-05,2]
[343657909,1732803033012,-3137.66,9.999e-05,2]
[343657910,1732803033022,-3137.66,9.999e-05,2]
[343657911,1732803033031,-3137.66,9.999e-05,2]
[343657912,1732803033040,-3137.66,9.999e-05,2]
[343657913,1732803033050,-3137.66,9.999e-05,2]
[343657914,1732803033059,-3137.66,9.999e-05,2]
[343657915,1732803033068,-3137.66,9.999e-05,2]
[343657916,1732803033080,-3137.66,9.999e-05,2]
[343657917,1732803033090,-3137.66,9.999e-05,2]
[343657918,1732803033100,-3137.66,9.999e-05,2]
[343657919,1732803033109,-3137.66,9.999e-05,2]
[343657920,1732803033118,-3137.66,9.999e-05,2]
[343657921,1732803033127,-3137.66,9.999e-05,2]
[343657922,1732803033136,-3137.66,9.999e-05,2]
[343657923,1732803033145,-3137.66,9.999e-05,2]
[343657924,1732803033154,-3137.69871641,9.999e-05,2]
[343657925,1732803033164,-351.0,9.999e-05,2]
[343657926,1732803033173,-417.21483265,9.999e-05,2]
[343657927,1732803033183,-500.0,9.999e-05,2]
[343657928,1732803033193,-341.39178672,9.999e-05,2]
[343657929,1732803033203,-500.0,9.999e-05,2]
[343657930,1732803033213,-305.55314776,9.999e-05,2]
[343657931,1732803033222,-1473.33,9.999e-05,2]
[343657932,1732803033232,-1473.33,9.999e-05,2]
[343657933,1732803033241,-1473.33,9.999e-05,2]
[343657934,1732803033251,-1473.33,9.999e-05,2]
[343657935,1732803033261,-1473.33,9.999e-05,2]
[343657936,1732803033271,-1473.33,9.999e-05,2]
[343657937,1732803033281,-1473.33,9.999e-05,2]
[343657938,1732803033290,-1473.33,9.999e-05,2]
[343657939,1732803033301,-1473.33,9.999e-05,2]
[343657940,1732803033310,-1473.33,9.999e-05,2]
[343657941,1732803033321,-1473.33,9.999e-05,2]
[343657942,1732803033331,-1473.33,9.999e-05,2]
[343657943,1732803033340,-1473.33,9.999e-05,2]
[343657944,1732803033349,-1473.33,9.999e-05,2]
[343657945,1732803033359,-1473.33,9.999e-05,2]
[343657946,1732803033370,-1473.33,9.999e-05,2]
[343657947,1732803033380,-1473.33,9.999e-05,2]
[343657948,1732803033389,-1473.33,9.999e-05,2]
[343657949,1732803033398,-1473.33,9.999e-05,2]
[343657950,1732803033408,-1473.33,9.999e-05,2]
[343657951,1732803033418,-1473.33,9.999e-05,2]
[343657952,1732803033428,-1473.33,9.999e-05,2]
[343657953,1732803033438,-1473.3937,9.999e-05,2]
[343657954,1732803033447,-329235.58792666,9.999e-05,2]
[343657955,1732803033457,-5457.11299615,9.999e-05,2]
[343657956,1732803033467,-931737.18768124,0.0001,2]
[343657971,1732803038644,-255.4030866,9.998e-05,2]
[343657972,1732803038674,-244.5969134,9.998e-05,2]
[343657973,1732803038684,-12582.1281506,0.0001,2]
[343657974,1732803038697,-14599.22921589,0.0001,2]
[343657975,1732803038708,-13565.0,0.0001,2]
[343657976,1732803038720,-14001.6,0.0001,2]
[343657977,1732803038731,-262771.43747411,0.0001,2]
[343657978,1732803038743,-9553.154996,0.0001,2]
[343657979,1732803038754,-9084.2900005,0.0001,2]
[343657980,1732803038765,-13724.235,0.0001,2]
[343657981,1732803038776,-1384.75,0.0001,2]
[343657982,1732803038788,-5915.5,0.0001,2]
[343657983,1732803038799,-25505.6,0.0001,2]
[343657984,1732803038810,-9934.59617434,0.0001,2]
[343657985,1732803038822,-7187.70987001,0.0001,2]
[343657986,1732803038842,-96174.00000005,0.0001,2]
[343657987,1732803038854,-192500.765056,0.0001,2]
[343657994,1732803040222,-500.0,9.998e-05,2]
[343657995,1732803040231,-1522.50935312,0.0001,2]
[343657996,1732803040259,-9123.3789064,0.0001,2]
[343657997,1732803040297,-1917.5675828,0.0001,2]
[343658002,1732803043053,-7869.708,0.0001,2]
[343658003,1732803043075,-1280.34348034,0.0001,2]
[343658004,1732803043099,-68195.81406945,0.0001,2]
[343658005,1732803043195,-3348.81432347,0.0001,2]
[343658006,1732803043218,-479.7404297,0.0001,2]
[343658007,1732803043315,-14858.05211291,0.0001,2]
[343658008,1732803043327,-524.7570961,0.0001,2]
[343658022,1732803045988,-285.21949749,0.0001,2]
[343658023,1732803046000,-2873.9387805,0.0001,2]
[343658024,1732803046036,-4796.47120733,0.0001,2]
[343658025,1732803046207,-34108.1831,0.0001,2]
[343658027,1732803184469,50000.0,0.00011,5]
[343658029,1732803674423,-1374.09,8.219e-05,2]
[343658030,1732803674449,-250.0,8.944e-05,2]
[343658031,1732803674476,-250.0,8.98e-05,2]
[343658032,1732803674501,-170.85,9.041e-05,2]
[343658033,1732803674527,-165.42,9.092e-05,2]
[343658034,1732803674555,-2732.73,9.203e-05,2]
[343658035,1732803674580,-250.0,9.209e-05,2]
[343658036,1732803674608,-361.7,9.26e-05,2]
[343658037,1732803674634,-178.22,9.372e-05,2]
[343658038,1732803674660,-158.64,9.589e-05,2]
[343658039,1732803674686,-507.39,9.636e-05,2]
[343658040,1732803674710,-500.31,9.636e-05,2]
[343658041,1732803674735,-496.93,9.636e-05,2]
[343658042,1732803674760,-501.94,9.636e-05,2]
[343658043,1732803674789,-501.42,9.636e-05,2]
[343658044,1732803674815,-1000.0,9.636e-05,2]
[343658045,1732803674841,-342.99,9.636e-05,2]
[343658046,1732803674866,-679.98,9.7e-05,2]
[343658047,1732803674890,-534.2815,9.7e-05,2]
[343658048,1732803674916,-500.0,9.773e-05,2]
[343658049,1732803674941,-150.0,9.799e-05,2]
[343658050,1732803674965,-225.2885668,9.8e-05,2]
[343658051,1732803674989,-359167.8199332,9.8e-05,2]
[343658052,1732803712336,-1001.13638175,0.00042698,30]
[343658053,1732803712361,-763.60695018,0.00042698,120]
[343658054,1732803712385,-1019.64127021,0.00042698,120]
[343658055,1732803712409,-1500.0,0.00042698,120]
[343658056,1732803712432,-10000.0,0.00042698,60]
[343658057,1732803712455,-10000.0,0.00042698,30]
[343658058,1732803712479,-10000.0,0.00042698,45]
[343658059,1732803712502,-482.42633263,0.00042698,120]
[343658060,1732803712526,-1719.80722882,0.00042698,120]
[343658061,1732803712551,-621.51129652,0.00042698,30]
[343658062,1732803712578,-2752.79401939,0.00042698,120]
[343658063,1732803712603,-101977.32102434,0.00042698,30]
[343658064,1732803712628,-1819292.61915715,0.00042698,30]
[343658065,1732803712652,-230489.95653752,0.00042698,30]
[343658066,1732803712676,-3128.84545565,0.00042698,120]
[343658067,1732803712698,-50409.02352963,0.00042698,30]
[343658068,1732803712721,-530.74775309,0.00042698,120]
[343658069,1732803712744,-3106.30738326,0.00042698,120]
[343658070,1732803712767,-1114.84174807,0.00042698,60]
[343658071,1732803712790,-1489.0,0.00042698,120]
[343658072,1732803712815,-55128.20883557,0.00042698,30]
[343658073,1732803712837,-2352.26370882,0.00042698,120]
[343658074,1732803712864,-173.39447331,0.00042698,120]
[343658075,1732803712887,-56988.56877884,0.00042698,30]
[343658076,1732803712911,-57234.47925044,0.00042698,30]
[343658077,1732803712933,-218092.93849561,0.00042698,30]
[343658078,1732803712956,-3085.6642276,0.00042698,120]
[343658079,1732803712979,-421.35094471,0.00042698,30]
[343658080,1732803713001,-181.40888325,0.00042698,120]
[343658081,1732803713023,-1000.0,0.00042698,120]
[343658082,1732803713047,-1000.0,0.00042698,120]
[343658083,1732803713070,-164.0,0.00042698,120]
[343658084,1732803713092,-1000.0,0.00042698,120]
[343658085,1732803713120,-20656.13770082,0.00042698,120]
[343658086,1732803713143,-4000.0,0.00042698,30]
[343658087,1732803713166,-327121.99863282,0.00042698,30]
[343658088,1732803717873,-122878.00136718,0.00042698,30]
[343658089,1732803717897,-3000.0,0.00042698,120]
[343658090,1732803717922,-262367.70710742,0.00042698,30]
[343658091,1732803717947,-20000.0,0.00042698,30]
[343658092,1732803717972,-20000.0,0.00042698,60]
[343658093,1732803717998,-100000.0,0.00042698,30]
[343658094,1732803718025,-100000.0,0.00042698,31]
[343658095,1732803718052,-100000.0,0.00042698,32]
[343658096,1732803718078,-100000.0,0.00042698,33]
[343658097,1732803718109,-100000.0,0.00042698,34]
[343658098,1732803718135,-100000.0,0.00042698,35]
[343658099,1732803718160,-10052.99946407,0.00042698,120]
[343658100,1732803718185,-4111.94391966,0.00042698,120]
[343658101,1732803718210,-3300.0,0.00042698,90]
[343658102,1732803718235,-360000.0,0.00042698,120]
[343658103,1732803718259,-32157.52849383,0.00042698,120]
[343658104,1732803718285,-526595.92299221,0.00042698,120]
[343658105,1732803718309,-1500.0,0.00042698,30]
[343658106,1732803718332,-7000.0,0.00042698,30]
[343658107,1732803718362,-500.0,0.00042698,30]
[343658108,1732803718387,-20000.0,0.00042698,120]
[343658109,1732803718411,-20000.0,0.00042698,120]
[343658110,1732803718437,-2000.0,0.00042698,31]
[343658111,1732803718461,-298294.0,0.00042698,120]
[343658112,1732803718487,-11366.0,0.00042698,120]
[343658113,1732803718511,-20255.79872636,0.00042698,120]
[343658114,1732803718535,-1000.0,0.00042698,60]
[343658115,1732803718560,-30000.0,0.00042698,90]
[343658116,1732803718587,-30000.0,0.00042698,120]
[343658117,1732803718614,-50000.0,0.00042698,120]
[343658118,1732803718638,-50000.0,0.00042698,90]
[343658119,1732803718664,-50000.0,0.00042698,120]
[343658120,1732803718689,-50000.0,0.00042698,120]
[343658121,1732803718713,-31284.6103391,0.00042698,120]
[343658122,1732803718738,-177138.4431899,0.00042698,120]
[343658123,1732803718762,-38937.65975748,0.00042698,120]
[343658124,1732803718786,-146259.38464279,0.00042698,120]
[343658125,1732803734507,-64047.19150642,0.00042698,120]
[343658126,1732803734532,-26359.9054028,0.00042698,120]
[343658127,1732803734557,-6145.61999636,0.00042698,120]
[343658128,1732803734587,-6514.9289773,0.00042698,120]
[343658129,1732803734613,-41758.35085522,0.00042698,120]
[343658130,1732803734639,-163333.62568481,0.00042698,120]
[343658131,1732803734668,-7739.60644681,0.00042698,120]
[343658132,1732803734695,-15404.02594208,0.00042698,120]
[343658133,1732803734721,-56974.67722014,0.00042698,120]
[343658134,1732803734750,-72598.64052014,0.00042698,120]
[343658135,1732803734776,-14441.1730183,0.00042698,120]
[343658136,1732803734803,-12752.65569544,0.00042698,120]
[343658137,1732803734830,-10121.65937995,0.00042698,120]
[343658138,1732803734856,-18227.91800281,0.00042698,60]
[343658139,1732803734888,-48812.18457877,0.00042698,120]
[343658140,1732803734914,-153686.76190345,0.00042698,120]
[343658141,1732803734939,-12669.68766684,0.00042698,120]
[343658142,1732803734963,-10000.0,0.00042698,120]
[343658143,1732803734988,-10000.0,0.00042698,60]
[343658144,1732803735014,-40334.0,0.00042698,120]
[343658145,1732803735040,-11934.0,0.00042698,90]
[343658146,1732803735064,-16422.58279514,0.00042698,120]
[343658147,1732803735089,-5379.55269655,0.00042698,120]
[343658148,1732803735119,-30000.0,0.00042698,60]
[343658149,1732803735146,-167250.70626313,0.00042698,120]
[343658150,1732803735171,-1173253.82002933,0.00042698,60]
[343658151,1732803735196,-9869.83314876,0.00042698,120]
[343658152,1732803735220,-81469.0,0.00042698,120]
[343658153,1732803735244,-3643.0,0.00042698,120]
[343658154,1732803735269,-10000.0,0.00042698,120]
[343658155,1732803735294,-10000.0,0.00042698,120]
[343658156,1732803735318,-28203.73297694,0.00042698,90]
[343658157,1732803735344,-201367.49915422,0.00042698,120]
[343658158,1732803735372,-100000.0,0.00042698,120]
[343658159,1732803735397,-4828.59129993,0.00042698,120]
[343658160,1732803735423,-4708.69863518,0.00042698,120]
[343658161,1732803735448,-4767.21242223,0.00042698,60]
[343658162,1732803735472,-10000.0,0.00042698,120]
[343658163,1732803735496,-10000.0,0.00042698,120]
[343658164,1732803735520,-2319.81397499,0.00042698,120]
[343658165,1732803735545,-12033.05648175,0.00042698,120]
[343658166,1732803735572,-10000.0,0.00042698,120]
[343658167,1732803735595,-88901.39688427,0.00042698,120]
[343658168,1732803735622,-18705.80546324,0.00042698,120]
[343658169,1732803735646,-193019.0849767,0.00042698,120]
[343658170,1732803748217,-298895.62364783,0.00042698,120]
[343658171,1732803748243,-78001.05186762,0.00042698,120]
[343658172,1732803748270,-13944.13408763,0.00042698,120]
[343658173,1732803748293,-14741.78472111,0.00042698,120]
[343658174,1732803748318,-56880.86312159,0.00042698,60]
[343658175,1732803748343,-24362.71308136,0.00042698,120]
[343658176,1732803748368,-23392.36678304,0.00042698,120]
[343658177,1732803748395,-19829.42871424,0.00042698,60]
[343658178,1732803748419,-9568.42227615,0.00042698,120]
[343658179,1732803748444,-42204.09388656,0.00042698,120]
[343658180,1732803748468,-122207.060267,0.00042698,120]
[343658181,1732803748493,-3355.9608407,0.00042698,120]
[343658182,1732803748519,-3501.32027892,0.00042698,120]
[343658183,1732803748545,-53446.41598139,0.00042698,120]
[343658184,1732803748572,-16041.97458201,0.00042698,120]
[343658185,1732803748597,-4737.39547646,0.00042698,120]
[343658186,1732803748623,-53464.13578262,0.00042698,120]
[343658187,1732803748652,-117118.48458563,0.00042698,120]
[343658188,1732803748678,-37259.27833926,0.00042698,120]
[343658189,1732803748703,-195977.60541579,0.00042698,120]
[343658190,1732803748729,-37299.74305247,0.00042698,120]
[343658191,1732803748755,-11765.88277413,0.00042698,120]
[343658192,1732803748784,-80615.80544731,0.00042698,120]
[343658193,1732803748808,-92350.64786821,0.00042698,120]
[343658194,1732803748833,-3573.03496882,0.00042698,90]
[343658195,1732803748859,-5610.78752361,0.00042698,120]
[343658196,1732803748889,-90353.94853218,0.00042698,120]
[343658197,1732803748913,-11134.22370399,0.00042698,120]
[343658198,1732803748937,-226377.88596253,0.00042698,120]
[343658199,1732803748959,-15602.57496442,0.00042698,120]
[343658200,1732803748983,-4079.74345399,0.00042698,120]
[343658201,1732803749007,-11240.68494891,0.00042698,120]
[343658202,1732803749032,-4763.17365127,0.00042698,120]
[343658203,1732803749056,-16790.83327546,0.00042698,120]
[343658204,1732803749080,-7493.56895035,0.00042698,120]
[343658205,1732803749104,-113118.29608815,0.00042698,120]
[343658206,1732803749129,-47902.59604124,0.00042698,120]
[343658207,1732803749153,-9416.89213253,0.00042698,120]
[343658208,1732803749177,-14285.54006554,0.00042698,120]
[343658209,1732803749201,-10484.17009203,0.00042698,120]
[343658210,1732803749226,-10000.0,0.00042698,120]
[343658211,1732803749250,-10000.0,0.00042698,120]
[343658212,1732803749274,-10000.0,0.00042698,120]
[343658213,1732803749298,-50000.0,0.00042698,120]
[343658214,1732803749322,-50000.0,0.00042698,120]
[343658215,1732803749351,-50000.0,0.00042698,120]
[343658216,1732803749376,-50000.0,0.00042698,120]
[343658217,1732803749406,-50000.0,0.00042698,120]
[343658218,1732803749432,-50000.0,0.00042698,120]
[343658219,1732803749695,-50000.0,0.00042698,120]
[343658220,1732803749723,-50000.0,0.00042698,120]
[343658221,1732803749748,-50000.0,0.00042698,120]
[343658222,1732803749772,-58072.6951524,0.00042698,120]
[343658223,1732803749797,-15000.0,0.00042698,120]
[343658224,1732803749822,-10000.0,0.00042698,120]
[343658225,1732803749847,-6604.64146781,0.00042698,120]
[343658226,1732803749871,-10000.0,0.00042698,90]
[343658227,1732803749901,-10000.0,0.00042698,120]
[343658228,1732803749927,-10000.0,0.00042698,120]
[343658229,1732803749951,-10000.0,0.00042698,120]
[343658230,1732803749975,-6774.0,0.00042698,120]
[343658231,1732803749999,-10000.0,0.00042698,120]
[343658232,1732803750024,-8482.52624003,0.00042698,120]
[343658233,1732803750050,-10000.0,0.00042698,120]
[343658234,1732803750074,-10000.0,0.00042698,120]
[343658235,1732803750101,-8026.27389543,0.00042698,120]
[343658236,1732803750126,-10000.0,0.00042698,120]
[343658237,1732803750156,-53070.19333418,0.00042698,120]
[343658238,1732803750180,-10000.0,0.00042698,120]
[343658239,1732803750205,-10000.0,0.00042698,120]
[343658240,1732803750229,-10000.0,0.00042698,120]
[343658241,1732803750254,-24714.5,0.00042698,90]
[343658242,1732803750279,-10000.0,0.00042698,120]
[343658243,1732803750303,-61344.85697691,0.00042698,60]
[343658244,1732803750329,-10000.0,0.00042698,120]
[343658245,1732803750354,-10000.0,0.00042698,120]
[343658246,1732803750384,-10000.0,0.00042698,120]
[343658247,1732803750411,-10000.0,0.00042698,120]
[343658248,1732803750436,-10000.0,0.00042698,120]
[343658249,1732803750461,-14336.92713218,0.00042698,120]
[343658250,1732803750486,-4150.0,0.00042698,120]
[343658251,1732803750512,-10000.0,0.00042698,120]
[343658252,1732803750539,-10000.0,0.00042698,120]
[343658253,1732803750567,-10000.0,0.00042698,120]
[343658254,1732803750598,-10000.0,0.00042698,120]
[343658255,1732803750622,-10000.0,0.00042698,120]
[343658256,1732803750652,-10000.0,0.00042698,120]
[343658257,1732803750678,-10000.0,0.00042698,120]
[343658258,1732803750702,-6233.23856701,0.00042698,120]
[343658259,1732803887415,500.0,9.863e-05,120]
[343658264,1732804002100,-180.85,9.127e-05,2]
[343658265,1732804002121,-16.06104492,9.208e-05,2]
[343658271,1732804125983,1023.52939447,0.00015,120]
[343658305,1732804232236,-695.16061057,8.219e-05,2]
[343658306,1732804232329,-620.06938943,8.219e-05,2]
[343658307,1732804232339,-250.0,8.914e-05,2]
[343658308,1732804232349,-250.0,8.945e-05,2]
[343658309,1732804232358,-983.93895508,9.208e-05,2]
[343658310,1732804232368,-150.0,9.378e-05,2]
[343658311,1732804232377,-500.0,9.473e-05,2]
[343658312,1732804232386,-300.0,9.499e-05,2]
[343658313,1732804232396,-150.0,9.499e-05,2]
[343658314,1732804232407,-3754282.24401791,9.5e-05,2]
[343658315,1732804232418,-239499.99999997,9.5e-05,2]
[343658317,1732804232659,-93570.16310928,9.5e-05,2]
[343658330,1732804238294,-7359.99975,9.5e-05,2]
[343658331,1732804238306,-710.86,9.5e-05,2]
[343658332,1732804238448,-1994.7388747,9.5e-05,2]
[343658333,1732804238463,-5333.27923742,9.5e-05,2]
[343658334,1732804238559,-60799.32294842,9.5e-05,2]
[343658352,1732804240257,-4784.0,9.5e-05,2]
[343658353,1732804240370,-3352.0753965,9.5e-05,2]
[343658354,1732804240382,-9229.06269999,9.5e-05,2]
[343658616,1732804243229,-265.45148975,9.5e-05,2]
[343658618,1732804243240,-2681.18215751,9.5e-05,2]
[343658621,1732804243252,-94046.40533808,9.5e-05,2]
[343658628,1732804243316,-2392.0245,9.5e-05,2]
[343658638,1732804243402,-9197.0,9.5e-05,2]
[343658640,1732804243417,-960.87,9.5e-05,2]
[343658643,1732804243430,-741.65,9.5e-05,2]
[343658645,1732804243442,-1273.2314635,9.5e-05,2]
[343658647,1732804243454,-539.946321,9.5e-05,2]
[343658658,1732804243575,-3804.12410058,9.5e-05,2]
[343658919,1732804246181,-526.22479576,9.5e-05,2]
[343658921,1732804246192,-371.13029117,9.5e-05,2]
[343658923,1732804246203,-17921.44351172,9.5e-05,2]
[343658926,1732804246217,-266003.2737,9.5e-05,2]
[343658950,1732804246438,-395.6,9.5e-05,2]
[343658955,1732804246478,-12609.75894632,9.5e-05,2]
[343658957,1732804246489,-11716.61281572,9.5e-05,2]
[343658959,1732804246501,-4813.107,9.5e-05,2]
[343658961,1732804246512,-996.71294676,9.5e-05,2]
[343658964,1732804246525,-4418.47032,9.5e-05,2]
[343659211,1732804415437,50000.0,0.00011,5]
[343659223,1732805431546,-1405.5,8.219e-05,2]
[343659224,1732805431556,-1000.0,8.406e-05,2]
[343659225,1732805431565,-385.44,8.463e-05,2]
[343659226,1732805431574,-165.42,8.63e-05,2]
[343659227,1732805431583,-3119.087431,8.638e-05,2]
[343659228,1732805431592,-300.0,8.682e-05,2]
[343659229,1732805431602,-10302.98,8.683e-05,2]
[343659230,1732805431611,-150.0,8.759e-05,2]
[343659231,1732805431620,-250.0,8.76e-05,2]
[343659232,1732805431630,-18737.08034615,8.76e-05,2]
[343659233,1732805431640,-461.62515191,8.76e-05,2]
[343659234,1732805431652,-1368.3098,8.76e-05,2]
[343659235,1732805431667,-3332.98470194,8.76e-05,2]
[343659236,1732805431676,-234.64,8.905e-05,2]
[343659237,1732805431685,-201.39,8.943e-05,2]
[343659238,1732805431694,-150.0,8.986e-05,2]
[343659239,1732805431703,-1000.0,8.987e-05,2]
[343659240,1732805431712,-181.0,9.012e-05,2]
[343659241,1732805431721,-162.38,9.035e-05,2]
[343659242,1732805431730,-606.79,9.04e-05,2]
[343659243,1732805431739,-878.44,9.041e-05,2]
[343659244,1732805431749,-482.95,9.065e-05,2]
[343659245,1732805431760,-168.32,9.217e-05,2]
[343659246,1732805431769,-388.62348279,9.399e-05,2]
[343659247,1732805431779,-33888.1321,9.4e-05,2]
[343659248,1732805431788,-1797.3672,9.4e-05,2]
[343659249,1732805431800,-1075.8118,9.4e-05,2]
[343659250,1732805431810,-4498.3996,9.4e-05,2]
[343659251,1732805431821,-4804.8,9.4e-05,2]
[343659252,1732805431831,-3846.155,9.4e-05,2]
[343659253,1732805431840,-495.0,9.405e-05,2]
[343659254,1732805431852,-27551.93687258,9.5e-05,2]
[343659255,1732805431906,-556.26670477,9.5e-05,2]
[343659256,1732805431918,-304.5907542,9.5e-05,2]
[343659258,1732805431930,-1917.86,9.5e-05,2]
[343659819,1732805437557,-924.80388,9.5e-05,2]
[343659835,1732805437702,-1709.94622596,9.5e-05,2]
[343659974,1732805439492,-372.15500003,9.5e-05,2]
[343659975,1732805439553,-709.29000007,9.5e-05,2]
[343659994,1732805439727,-344.62994082,9.5e-05,2]
[343660110,1732805443458,-11334.85595467,9.5e-05,2]
[343660111,1732805443469,-1756.89193734,9.5e-05,2]
[343660112,1732805443635,-23690.74505344,9.5e-05,2]
[343660113,1732805443646,-5343.9435571,9.5e-05,2]
[343660114,1732805443657,-70773.52480066,9.5e-05,2]
[343660115,1732805443669,-10703.84525584,9.5e-05,2]
[343660116,1732805443684,-9562.29264239,9.5e-05,2]
[343660177,1732805445429,-4604.54995,9.5e-05,2]
[343660178,1732805445478,-1608.63720146,9.5e-05,2]
[343660179,1732805445529,-478.73002038,9.5e-05,2]
[343660180,1732805445540,-2156.87119577,9.5e-05,2]
[343660181,1732805445580,-4795.0209,9.5e-05,2]
[343660182,1732805445733,-137000.0,9.5e-05,2]
[343660184,1732805529165,38573.6233574,0.00011,5]
[343660185,1732805564468,50000.0,0.00011,8]
[343660187,1732806113732,50000.0,0.00011,8]
[343660202,1732806593850,50000.0,0.00011,8]
[343660230,1732806633490,-1430.04,8.219e-05,2]
[343660231,1732806633502,-250.0,8.773e-05,2]
[343660232,1732806633511,-165.42,8.808e-05,2]
[343660233,1732806633525,-1000.0,8.824e-05,2]
[343660234,1732806633536,-244.64,8.84e-05,2]
[343660235,1732806633547,-293.0,8.847e-05,2]
[343660236,1732806633557,-198.34860001,8.848e-05,2]
[343660237,1732806633569,-17698.56788724,8.848e-05,2]
[343660238,1732806633587,-6003.08351275,8.848e-05,2]
[343660239,1732806633597,-166.8,9.132e-05,2]
[343660240,1732806633607,-3379.0653,9.4e-05,2]
[343660241,1732806633617,-1418.1488,9.4e-05,2]
[343660242,1732806633626,-150.0,9.499e-05,2]
[343660243,1732806633636,-41807.19810016,9.5e-05,2]
[343660244,1732806633647,-3754.32856509,9.5e-05,2]
[343660250,1732806637659,-67178.0,9.5e-05,2]
[343660251,1732806637726,-1377.37765497,9.5e-05,2]
[343660252,1732806637885,-19154.0,9.5e-05,2]
[343660253,1732806637897,-2318.27834979,9.5e-05,2]
[343660254,1732806638043,-560.0,9.5e-05,2]
[343660280,1732806639812,-281.0,9.5e-05,2]
[343660281,1732806639997,-1421.22370109,9.5e-05,2]
[343660284,1732806640008,-4767.5,9.5e-05,2]
[343660349,1732806642653,-14229.13055805,9.5e-05,2]
[343660354,1732806642721,-4652.5,9.5e-05,2]
[343660355,1732806643688,-1706.67248067,9.5e-05,2]
[343660356,1732806643753,-580.25000005,9.5e-05,2]
[343660357,1732806643822,-3243.67671859,9.5e-05,2]
[343660358,1732806643834,-9482.85735059,9.5e-05,2]
[343660359,1732806643845,-5388.42629058,9.5e-05,2]
[343660360,1732806643857,-17278.41664011,9.5e-05,2]
[343660361,1732806643868,-618.08335985,9.5e-05,2]
[343660512,1732806645658,-1471.1,9.5e-05,2]
[343660514,1732806645669,-956.235,9.5e-05,2]
[343660516,1732806645682,-764.54380351,9.5e-05,2]
[343660533,1732806645828,-31417.07653789,9.5e-05,2]
[343660535,1732806645839,-68913.94958678,9.5e-05,2]
[343660725,1732806750774,50000.0,0.00011,8]
[343660729,1732806994943,50000.0,0.00011,8]
[343660848,1732807594091,-196.91165182,8.219e-05,2]
[343661420,1732807676302,36829.2976502,0.00011,8]
[343661422,1732807710709,50000.0,0.00011,10]
[343661442,1732807832013,-1161.61834818,8.219e-05,2]
[343661443,1732807832022,-276.127,8.748e-05,2]
[343661444,1732807832032,-300.0,8.793e-05,2]
[343661445,1732807832042,-4309.7589513,8.794e-05,2]
[343661446,1732807832151,-17185.36336991,8.794e-05,2]
[343661447,1732807832312,-2404.87767879,8.794e-05,2]
[343661448,1732807832322,-250.0,8.804e-05,2]
[343661449,1732807832332,-244.64,8.822e-05,2]
[343661450,1732807832341,-308.35,8.876e-05,2]
[343661451,1732807832351,-181.0,8.892e-05,2]
[343661452,1732807832361,-150.0,8.9e-05,2]
[343661453,1732807832371,-150.0,8.9e-05,2]
[343661454,1732807832380,-150.0,8.91e-05,2]
[343661455,1732807832390,-150.0,8.91e-05,2]
[343661456,1732807832400,-150.0,9.399e-05,2]
[343661457,1732807832409,-1552.0167,9.4e-05,2]